Workbook

Sheet паспорт
A1: ПАТ "УКРТРАНСГАЗ" | G1: ПАСПОРТ ФІЗИКО-ХІМІЧНИХ ПОКАЗНИКІВ ПРИРОДНОГО ГАЗУ № 654
A2: Філія "УМГ "ХАРКІВТРАНСГАЗ" | G2: переданого Сєвєродонецьким ЛВУМГ та прийнятого ПАТ "Луганськгаз"
A3: Сєвєродонецьке ЛВУМГ | G3: Маршрут № 654
A4: Вимірювальна хіміко-аналітична лабораторія
A5: Свідоцтво № РЬ089/2014 чинно до 06.06.2017 р. | K5: по газопроводу "Луганськ-Лисичанськ-Рубіжне" | V5: за період з | X5: 01.02.2017 р. | Z5: по | AA5: 28.02.2017 р.
A7: Число місяця | B7: Компонентний склад, мол. % | N7: Фізико-хімічні показники газу обчислені на основі компонентного складу, 101,325 кПа | X7: Температура точки роси за вологою (Р = 3.92 МПа), °С | Y7: Температура точки роси за вуглеводнями, °С | Z7: Вміст сірководню, г/м3 | AA7: Вміст меркаптанової сірки, г/м3 | AB7: Вміст механічних домішок, г/м3
N8: Густина абсолютна, кг/м3,при 20 °С, | O8: Температура вимірювання/згоряння при 20/25°С
B9: метан, С1 | C9: етан, С2 | D9: пропан, С3 | E9: ізо-бутан, і-С4 | F9: н-бутан, н-С4 | G9: нео-пентан, нео-С5 | H9: ізо-пентан, і-С5 | I9: н-пентан, н-С5 | J9: гексани та вищі, С6+ | K9: кисень, О2 | L9: азот, N2 | M9: діоксид вуглецю, CО2 | O9: Теплота згоряння нижча | R9: Теплота згоряння вища | U9: Число Воббе вище
O10: ккал/м³ | P10: МДж/м³ | Q10: кВт⋅год/м³ | R10: ккал/м³ | S10: МДж/м³ | T10: кВт⋅год/м³ | U10: ккал/м³ | V10: МДж/м³ | W10: кВт⋅год/м³
A11: 1 | O11: =P11*238.8459 -> 8170.24947 | P11: 34.2072 | Q11: =P11/3.6 -> 9.502 | R11: =S11*238.8459 -> 9047.57823 | S11: 37.8804 | T11: =S11/3.6 -> 10.52233333 | U11: =V11/0.0041868 -> 11547.00487 | V11: 48.345 | W11: =V11/3.6 -> 13.42916667 | AC11: =SUM(B11:M11)+$K$42+$N$42 -> 0
A12: 2 | O12: =P12*238.8459 -> 8170.24947 | P12: 34.2072 | Q12: =P12/3.6 -> 9.502 | R12: =S12*238.8459 -> 9047.57823 | S12: 37.8804 | T12: =S12/3.6 -> 10.52233333 | U12: =V12/0.0041868 -> 11547.00487 | V12: 48.345 | W12: =V12/3.6 -> 13.42916667 | X12: -7.1 | Y12: -15.2 | Z12: 0.0012 | AA12: 0.0015 | AB12: відс | AC12: 0
A13: 3 | B13: 91.1151 | C13: 3.4162 | D13: 1.1072 | E13: 0.1396 | F13: 0.2425 | G13: 0.0027 | H13: 0.0328 | I13: 0.0368 | J13: 0.0817 | K13: 0.0105 | L13: 2.7584 | M13: 1.0565 | N13: 0.7382 | O13: =P13*238.8459 -> 8142.256731 | P13: 34.09 | Q13: =P13/3.6 -> 9.469444444 | R13: =S13*238.8459 -> 9018.725646 | S13: 37.7596 | T13: =S13/3.6 -> 10.48877778 | U13: =V13/0.0041868 -> 11520.08694 | V13: 48.2323 | W13: =V13/3.6 -> 13.39786111 | AC13: 100 | AD13: =IF(AC13=100,"ОК"," ") -> ОК
A14: 4 | O14: =P14*238.8459 -> 8142.256731 | P14: 34.09 | Q14: =P14/3.6 -> 9.469444444 | R14: =S14*238.8459 -> 9018.725646 | S14: 37.7596 | T14: =S14/3.6 -> 10.48877778 | U14: =V14/0.0041868 -> 11520.08694 | V14: 48.2323 | W14: =V14/3.6 -> 13.39786111 | AC14: 0 | AD14: =IF(AC14=100,"ОК"," ") -> 
A15: 5 | O15: 8142.256731 | P15: 34.09 | Q15: 9.469444444 | R15: 9018.725646 | S15: 37.7596 | T15: 10.48877778 | U15: 11520.08694 | V15: 48.2323 | W15: 13.39786111 | AC15: 0
A16: 6 | O16: 8142.256731 | P16: 34.09 | Q16: 9.469444444 | R16: 9018.725646 | S16: 37.7596 | T16: 10.48877778 | U16: 11520.08694 | V16: 48.2323 | W16: 13.39786111 | AC16: 0
A17: 7 | O17: 8142.256731 | P17: 34.09 | Q17: 9.469444444 | R17: 9018.725646 | S17: 37.7596 | T17: 10.48877778 | U17: 11520.08694 | V17: 48.2323 | W17: 13.39786111 | AC17: 0
A18: 8 | O18: 8142.256731 | P18: 34.09 | Q18: 9.469444444 | R18: 9018.725646 | S18: 37.7596 | T18: 10.48877778 | U18: 11520.08694 | V18: 48.2323 | W18: 13.39786111 | AC18: 0
A19: 9 | B19: 90.9874 | C19: 3.4789 | D19: 1.1236 | E19: 0.1413 | F19: 0.2421 | G19: 0.005 | H19: 0.0574 | I19: 0.0481 | J19: 0.0811 | K19: 0.0098 | L19: 2.7604 | M19: 1.0649 | N19: 0.7398 | O19: =P19*238.8459 -> 8158.163868 | P19: 34.1566 | Q19: =P19/3.6 -> 9.487944444 | R19: =S19*238.8459 -> 9034.370052 | S19: 37.8251 | T19: =S19/3.6 -> 10.50697222 | U19: =V19/0.0041868 -> 11527.87332 | V19: 48.2649 | W19: =V19/3.6 -> 13.40691667 | AC19: 100 | AD19: ОК
A20: 10 | O20: =P20*238.8459 -> 8158.163868 | P20: 34.1566 | Q20: =P20/3.6 -> 9.487944444 | R20: =S20*238.8459 -> 9034.370052 | S20: 37.8251 | T20: =S20/3.6 -> 10.50697222 | U20: =V20/0.0041868 -> 11527.87332 | V20: 48.2649 | W20: =V20/3.6 -> 13.40691667 | AC20: 0
A21: 11 | O21: 8158.163868 | P21: 34.1566 | Q21: 9.487944444 | R21: 9034.370052 | S21: 37.8251 | T21: 10.50697222 | U21: 11527.87332 | V21: 48.2649 | W21: 13.40691667 | AC21: 0
A22: 12 | O22: 8158.163868 | P22: 34.1566 | Q22: 9.487944444 | R22: 9034.370052 | S22: 37.8251 | T22: 10.50697222 | U22: 11527.87332 | V22: 48.2649 | W22: 13.40691667 | AC22: 0
A23: 13 | O23: 8158.163868 | P23: 34.1566 | Q23: 9.487944444 | R23: 9034.370052 | S23: 37.8251 | T23: 10.50697222 | U23: 11527.87332 | V23: 48.2649 | W23: 13.40691667 | AC23: 0
A24: 14 | O24: 8158.163868 | P24: 34.1566 | Q24: 9.487944444 | R24: 9034.370052 | S24: 37.8251 | T24: 10.50697222 | U24: 11527.87332 | V24: 48.2649 | W24: 13.40691667 | AC24: 0
A25: 15 | B25: 91.3257 | C25: 3.2944 | D25: 1.1057 | E25: 0.1431 | F25: 0.2546 | G25: 0.004 | H25: 0.0664 | I25: 0.0577 | J25: 0.073 | K25: 0.0097 | L25: 2.7583 | M25: 0.9074 | N25: 0.737 | O25: =P25*238.8459 -> 8161.627133 | P25: 34.1711 | Q25: =P25/3.6 -> 9.491972222 | R25: =S25*238.8459 -> 9038.57374 | S25: 37.8427 | T25: =S25/3.6 -> 10.51186111 | U25: =V25/0.0041868 -> 11554.45686 | V25: 48.3762 | W25: =V25/3.6 -> 13.43783333 | AC25: 100 | AD25: ОК
A26: 16 | O26: =P26*238.8459 -> 8161.627133 | P26: 34.1711 | Q26: =P26/3.6 -> 9.491972222 | R26: =S26*238.8459 -> 9038.57374 | S26: 37.8427 | T26: =S26/3.6 -> 10.51186111 | U26: =V26/0.0041868 -> 11554.45686 | V26: 48.3762 | W26: =V26/3.6 -> 13.43783333 | AC26: 0
A27: 17 | O27: 8161.627133 | P27: 34.1711 | Q27: 9.491972222 | R27: 9038.57374 | S27: 37.8427 | T27: 10.51186111 | U27: 11554.45686 | V27: 48.3762 | W27: 13.43783333 | AC27: 0
A28: 18 | O28: 8161.627133 | P28: 34.1711 | Q28: 9.491972222 | R28: 9038.57374 | S28: 37.8427 | T28: 10.51186111 | U28: 11554.45686 | V28: 48.3762 | W28: 13.43783333 | AC28: 0
A29: 19 | O29: 8161.627133 | P29: 34.1711 | Q29: 9.491972222 | R29: 9038.57374 | S29: 37.8427 | T29: 10.51186111 | U29: 11554.45686 | V29: 48.3762 | W29: 13.43783333 | AC29: 0
A30: 20 | O30: 8161.627133 | P30: 34.1711 | Q30: 9.491972222 | R30: 9038.57374 | S30: 37.8427 | T30: 10.51186111 | U30: 11554.45686 | V30: 48.3762 | W30: 13.43783333 | AC30: 0 | AD30: =IF(AC30=100,"ОК"," ") -> 
A31: 21 | O31: 8161.627133 | P31: 34.1711 | Q31: 9.491972222 | R31: 9038.57374 | S31: 37.8427 | T31: 10.51186111 | U31: 11554.45686 | V31: 48.3762 | W31: 13.43783333 | AC31: 0
A32: 22 | O32: 8161.627133 | P32: 34.1711 | Q32: 9.491972222 | R32: 9038.57374 | S32: 37.8427 | T32: 10.51186111 | U32: 11554.45686 | V32: 48.3762 | W32: 13.43783333 | AC32: 0
A33: 23 | B33: 90.7833 | C33: 3.2804 | D33: 1.2094 | E33: 0.1603 | F33: 0.2925 | G33: 0.004 | H33: 0.0731 | I33: 0.0637 | J33: 0.0872 | K33: 0.0096 | L33: 2.9067 | M33: 1.1298 | N33: 0.7432 | O33: =P33*238.8459 -> 8161.770441 | P33: 34.1717 | Q33: =P33/3.6 -> 9.492138889 | R33: =S33*238.8459 -> 9037.570587 | S33: 37.8385 | T33: =S33/3.6 -> 10.51069444 | U33: =V33/0.0041868 -> 11505.23073 | V33: 48.1701 | W33: =V33/3.6 -> 13.38058333 | AC33: 100 | AD33: =IF(AC33=100,"ОК"," ") -> ОК
A34: 24 | O34: =P34*238.8459 -> 8161.770441 | P34: 34.1717 | Q34: =P34/3.6 -> 9.492138889 | R34: =S34*238.8459 -> 9037.570587 | S34: 37.8385 | T34: =S34/3.6 -> 10.51069444 | U34: =V34/0.0041868 -> 11505.23073 | V34: 48.1701 | W34: =V34/3.6 -> 13.38058333 | AC34: 0
A35: 25 | O35: 8161.770441 | P35: 34.1717 | Q35: 9.492138889 | R35: 9037.570587 | S35: 37.8385 | T35: 10.51069444 | U35: 11505.23073 | V35: 48.1701 | W35: 13.38058333 | AC35: 0
A36: 26 | O36: 8161.770441 | P36: 34.1717 | Q36: 9.492138889 | R36: 9037.570587 | S36: 37.8385 | T36: 10.51069444 | U36: 11505.23073 | V36: 48.1701 | W36: 13.38058333 | AC36: 0
A37: 27 | O37: 8161.770441 | P37: 34.1717 | Q37: 9.492138889 | R37: 9037.570587 | S37: 37.8385 | T37: 10.51069444 | U37: 11505.23073 | V37: 48.1701 | W37: 13.38058333 | AC37: 0
A38: 28 | O38: 8161.770441 | P38: 34.1717 | Q38: 9.492138889 | R38: 9037.570587 | S38: 37.8385 | T38: 10.51069444 | U38: 11505.23073 | V38: 48.1701 | W38: 13.38058333 | AC38: 0
A39: 29 | AC39: 0
A40: 30 | AC40: 0
A41: 31 | AC41: 0
A42: Рівень одоризації відповідає чинним нормативним документам | O42: =SUMPRODUCT(O11:O41,' розрахунок'!E7:E37)/' розрахунок'!E38 -> 8156.891441 | P42: =SUMPRODUCT(P11:P41,' розрахунок'!E7:E37)/' розрахунок'!E38 -> 34.1512726 | Q42: =SUMPRODUCT(Q11:Q41,' розрахунок'!E7:E37)/' розрахунок'!E38 -> 9.486464612 | R42: =SUMPRODUCT(R11:R41,' розрахунок'!E7:E37)/' розрахунок'!E38 -> 9033.383142 | S42: =SUMPRODUCT(S11:S41,' розрахунок'!E7:E37)/' розрахунок'!E38 -> 37.82096801 | T42: =SUMPRODUCT(T11:T41,' розрахунок'!E7:E37)/' розрахунок'!E38 -> 10.50582445
H43: Середньозважене значення теплоти згоряння:
B46: Начальник управління Сєвєродонецького ЛВУМГ Головко Ю.О.
C47: Підрозділу підприємства, якому підпорядкована лабораторія | O47: прізвище | R47: підпис | V47: дата
B48: Інженер ІІ кат.вимірювальної хіміко-аналітичної лабораторії Єрьоменко М.О.
C49: Лабораторія, де здійснювалось вимірювання газу | O49: прізвище | R49: підпис | V49: дата
B50: Начальник служби метрології Ісаєв В.С.
C51: Підрозділу, відповідального за облік газу за маршрутом | O51: прізвище | R51: підпис | V51: дата

Sheet розрахунок (hidden)
A2: Додаток до Паспорту фізико-хімічних показників природного газу по маршруту № 654
A4: Число місяця | B4: Теплота згоряння вища, МДж/м3 | C4: Луганська область | E4: Загальний обсяг газу, м3
C5: Обсяг газу переданого за добу, м3
C6: ГРС м. Сєвєродонецьк город | D6: ГРС м. Сєвєродонецьк Лисичанськ
A7: 1 | B7: 37.8804 | C7: 272672.41 | D7: 282432.03 | E7: =D7+C7 -> 555104.44
A8: 2 | B8: 37.8804 | C8: 265018.94 | D8: 275771.03 | E8: =C8+D8 -> 540789.97
A9: 3 | B9: 37.7596 | C9: 246431.48 | D9: 273230.25 | E9: =D9+C9 -> 519661.73
A10: 4 | B10: 37.7596 | C10: 220817.55 | D10: 251440.03 | E10: 472257.58
A11: 5 | B11: 37.7596 | C11: 220160.17 | D11: 244053.86 | E11: 464214.03
A12: 6 | B12: 37.7596 | C12: 248885.03 | D12: 259113.42 | E12: 507998.45
A13: 7 | B13: 37.7596 | C13: 271258.53 | D13: 291218.28 | E13: 562476.81
A14: 8 | B14: 37.7596 | C14: 282542.59 | D14: 314448.31 | E14: 596990.9
A15: 9 | B15: 37.8251 | C15: 281419.28 | D15: 306026.44 | E15: 587445.72
A16: 10 | B16: 37.8251 | C16: 258055.98 | D16: 287783.16 | E16: 545839.14
A17: 11 | B17: 37.8251 | C17: 242810.14 | D17: 272965.38 | E17: 515775.52
A18: 12 | B18: 37.8251 | C18: 243624.23 | D18: 264670.25 | E18: 508294.48
A19: 13 | B19: 37.8251 | C19: 224208.14 | D19: 254688.3 | E19: 478896.44
A20: 14 | B20: 37.8251 | C20: 225944.98 | D20: 259464.88 | E20: 485409.86
A21: 15 | B21: 37.8427 | C21: 220357 | D21: 249233.56 | E21: 469590.56
A22: 16 | B22: 37.8427 | C22: 225992.25 | D22: 255419.36 | E22: 481411.61
A23: 17 | B23: 37.8427 | C23: 225830.39 | D23: 249899.22 | E23: 475729.61
A24: 18 | B24: 37.8427 | C24: 208930.91 | D24: 240112.48 | E24: 449043.39
A25: 19 | B25: 37.8427 | C25: 205763.36 | D25: 230848.98 | E25: 436612.34
A26: 20 | B26: 37.8427 | C26: 191210.22 | D26: 200350.86 | E26: 391561.08
A27: 21 | B27: 37.8427 | C27: 181720.39 | D27: 194874.67 | E27: 376595.06
A28: 22 | B28: 37.8427 | C28: 181762.17 | D28: 188921.72 | E28: 370683.89
A29: 23 | B29: 37.8385 | C29: 181645.86 | D29: 191450.17 | E29: 373096.03
A30: 24 | B30: 37.8385 | C30: 162334.22 | D30: 182927.53 | E30: 345261.75
A31: 25 | B31: 37.8385 | C31: 175659.5 | D31: 186724.22 | E31: 362383.72
A32: 26 | B32: 37.8385 | C32: 185321.66 | D32: 197788.13 | E32: 383109.79
A33: 27 | B33: 37.8385 | C33: 180603.75 | D33: 197568.22 | E33: 378171.97
A34: 28 | B34: 37.8385 | C34: 173632.92 | D34: 189292.55 | E34: 362925.47
A35: 29
A36: 30
A37: 31
A38: Загальний обсяг газу, м3 | C38: =SUM(C7:C37) -> 6204614.05 | D38: =SUM(D7:D37) -> 6792717.29 | E38: =SUM(E7:E37) -> 12997331.34
A39: Енергія, МДж | C39: =SUMPRODUCT(B7:B37,C7:C37) -> 234665364.8 | D39: =SUMPRODUCT(B7:B37,D7:D37) -> 256906288 | E39: =SUMPRODUCT(B7:B37,E7:E37) -> 491571652.8
A40: Теплота згоряння (середньозважене значення за місяць), МДж/м³ | C40: =C39/C38 -> 37.82110586 | D40: =D39/D38 -> 37.82084209 | E40: =E39/E38 -> 37.82096801
A41: Теплота згоряння (середньозважене значення за місяць), ккал/м³ | C41: =C40*238.8459 -> 9033.416068 | D41: =D40*238.8459 -> 9033.353067 | E41: =E40*238.8459 -> 9033.383142
A42: Теплота згоряння (середньозважене значення за місяць), кВт*год./м³ | C42: =C40/3.6 -> 10.50586274 | D42: =D40/3.6 -> 10.50578947 | E42: =E40/3.6 -> 10.50582445

Sheet додаток
A2: Додаток до Паспорту фізико-хімічних показників природного газу №654
A4: Область | B4: ГРС, прямий споживач | C4: Cередньозважене значення вищої теплоти згоряння
C5: МДж/м³ | D5: ккал/м³ | E5: кВт*год./м³
A6: Луганська область | B6: ГРС м. Сєвєродонецьк город | C6: 37.82 | D6: 9033 | E6: 10.51
B7: ГРС м. Сєвєродонецьк Лисичанськ | C7: 37.82 | D7: 9033 | E7: 10.51
A8: Середньозважене значення вищої теплоти згоряння по маршруту № 654 | C8: 37.82 | D8: 9033 | E8: 10.51
A12: Начальник управління Сєвєродонецького ЛВУМГ Головко Ю.О.
A13: Підрозділу підприємства, якому підпорядкована лабораторія | D13: прізвище | E13: підпис | F13: дата
A14: Інженер ІІ кат.вимірювальної хіміко-аналітичної лабораторії Єрьоменко М.О.
A15: Лабораторія, де здійснювалось вимірювання газу | D15: прізвище | E15: підпис | F15: дата
A16: Начальник служби метрології Ісаєв В.С.
A17: Підрозділу, відповідального за облік газу за маршрутом | D17: прізвище | E17: підпис | F17: дата

Sheet variablesList (hidden)
A1: 3 | B1: x:\gaysin | C1: 10, 11, 24, 25, 127, 128, 132, 180, 207, 215 | D1: x:\
B2: x:\Illinci
B3: x:\Talne
